bitfinex/quotes_ETHUSD_20260209
["timestamp","ask_amount","ask_price","bid_price","bid_amount"]
[1770663135861,3.3823097,2131.7,2130.6,3.279]
[1770663136031,3.43862658,2132.0,2131.0,1.17312465]
[1770663136234,3.3823097,2132.0,2131.0,1.17312465]
[1770663136564,3.3823097,2132.0,2130.8,1.17323242]
[1770663136760,3.43862658,2132.0,2130.8,1.17323242]
[1770663137222,4.55497258,2131.9,2130.7,4.69319319]
[1770663137425,3.43862658,2131.6,2130.6,3.279]
[1770663137622,3.3823097,2131.6,2130.6,4.45237578]
[1770663138672,0.05631688,2131.8,2130.0,0.87399933]
[1770663138673,3.3823097,2131.0,2130.0,0.87399933]
[1770663138971,3.3823097,2131.0,2129.9,1.17476124]
[1770663138972,3.43862658,2130.6,2129.9,0.001]
[1770663139257,3.3823097,2130.8,2129.9,0.001]
[1770663139454,1.17321319,2130.9,2129.9,0.001]
[1770663139455,3.76121787,2130.7,2129.9,0.001]
[1770663139821,3.76121787,2130.5,2129.9,0.001]
[1770663140555,3.76121787,2130.3,2129.9,0.001]
[1770663141149,3.76121787,2130.3,2129.6,0.001]
[1770663141346,1.17359872,2130.2,2129.6,0.001]
[1770663141552,4.87849971,2130.2,2129.6,0.001]
[1770663142061,3.70490099,2130.1,2129.6,0.001]
[1770663143439,1.17370892,2130.0,2129.6,0.001]
[1770663144274,1.17354363,2130.3,2129.6,0.001]
[1770663145343,4.8785548,2130.1,2129.6,0.001]
[1770663145548,3.70490099,2130.0,2129.4,0.001]
[1770663145749,1.17365381,2130.1,2129.4,0.001]
[1770663146356,3.76121787,2130.0,2129.4,0.001]
[1770663146556,3.70490099,2130.0,2129.4,0.001]
[1770663147574,1.17376402,2129.9,2129.4,0.001]
[1770663147969,1.17359872,2130.2,2129.4,0.001]
[1770663148888,1.17359872,2130.2,2128.9,3.45032582]
[1770663148889,0.05631688,2129.5,2128.8,0.001]
[1770663149072,0.05631688,2129.3,2128.8,0.001]
[1770663149379,3.76121787,2129.3,2128.2,1.1747013]
[1770663149547,1.17414991,2129.2,2127.9,0.001]
[1770663149745,0.05631688,2129.1,2127.9,0.001]
[1770663150063,3.70490099,2128.8,2127.9,0.001]
[1770663150258,0.05631688,2128.6,2127.9,0.001]
[1770663150458,3.28,2128.9,2127.9,0.001]
[1770663150657,0.05631688,2128.8,2127.9,0.001]
[1770663151454,1.17426021,2129.0,2127.9,0.001]
[1770663151688,1.17423354,2129.1,2127.9,0.001]
[1770663152185,1.23055042,2129.1,2127.9,0.001]
[1770663152900,1.17423354,2129.1,2127.9,3.45132582]
[1770663153327,4.45419179,2129.2,2127.9,3.45132582]
[1770663153457,4.45419179,2129.2,2128.0,1.17481203]
[1770663153858,4.45419179,2129.2,2128.1,0.001]
[1770663154086,8.21540966,2129.2,2128.1,0.001]
[1770663156170,1.17431537,2128.9,2128.1,0.001]
[1770663158496,4.69715112,2129.0,2128.1,0.001]
[1770663158691,8.40205211,2129.0,2128.1,0.001]
[1770663159494,0.05631688,2128.9,2128.1,0.001]
[1770663159694,0.05631688,2128.7,2128.1,0.001]
[1770663159897,3.76121787,2128.9,2128.1,0.001]
[1770663160094,0.05631688,2128.7,2128.1,0.001]
[1770663160303,3.76121787,2128.7,2128.1,0.001]
[1770663160507,1.17448087,2128.6,2128.1,0.001]
[1770663160882,4.69715112,2129.0,2128.1,0.001]
[1770663160883,1.17417698,2129.2,2128.1,0.001]
[1770663161191,3.70490099,2128.9,2128.1,0.001]
[1770663162078,4.87907797,2129.2,2128.1,0.001]
[1770663162274,0.05631688,2129.1,2128.1,0.001]
[1770663162475,4.8791612,2129.0,2128.1,0.001]
[1770663164384,0.05631688,2128.9,2128.1,0.001]
[1770663164594,4.8791612,2129.0,2128.1,0.001]
[1770663164800,3.70490099,2128.9,2128.1,0.001]
[1770663166321,3.70490099,2128.9,2128.3,0.001]
[1770663166614,1.17637053,2128.8,2128.3,0.001]
[1770663169017,0.002,2128.8,2128.3,0.001]
[1770663171811,0.002,2128.8,2128.3,3.46593117]
[1770663173301,0.002,2128.8,2128.4,1.17459124]
[1770663174018,0.002,2128.8,2128.3,0.001]
[1770663174519,0.002,2128.8,2128.3,1.17564178]
[1770663175315,0.002,2128.8,2128.3,0.001]
[1770663176503,3.41620424,2128.8,2128.3,0.001]
[1770663177329,1.1744257,2128.7,2128.3,0.001]
[1770663177711,4.59062065,2128.8,2128.3,0.001]
[1770663178231,1.00773722,2128.7,2128.3,0.001]
[1770663178399,4.59062065,2128.8,2128.3,0.001]
[1770663178599,1.00773605,2128.7,2128.3,0.001]
[1770663178828,4.59062065,2128.8,2128.3,0.001]
[1770663179028,1.00781973,2128.7,2128.3,0.001]
[1770663179229,4.59062065,2128.8,2128.3,0.001]
[1770663179531,2.18238046,2128.7,2128.5,0.001]
[1770663179726,1.00782971,2128.6,2128.3,0.001]
[1770663180028,0.002,2128.6,2128.3,0.001]
[1770663182508,0.002,2129.0,2128.3,3.46593117]
[1770663183931,0.002,2129.0,2128.4,1.17459124]
[1770663184234,0.006,2129.0,2128.4,1.17459124]
[1770663186422,0.006,2129.0,2128.3,4.45761195]
[1770663186735,0.002,2129.0,2128.3,4.45761195]
[1770663187725,0.002,2129.0,2128.4,3.46493117]
[1770663188352,0.002,2129.0,2128.5,1.17453605]
[1770663188538,0.006,2129.0,2128.5,1.17453605]
[1770663190542,0.006,2129.0,2128.4,4.69814423]
[1770663191317,0.006,2129.0,2128.3,1.17560706]
[1770663191655,0.006,2129.0,2128.3,1.17563385]
[1770663192317,0.006,2129.0,2128.5,0.001]
[1770663192647,0.002,2128.8,2128.5,0.001]
[1770663194434,0.006,2128.8,2128.5,0.001]
[1770663194919,0.00128286,2128.8,2128.5,0.001]
[1770663197353,0.002,2129.0,2128.5,0.001]
[1770663197523,0.00128286,2128.9,2128.5,0.001]
[1770663200153,0.002,2129.0,2128.5,0.001]
[1770663200450,0.00328286,2129.0,2128.5,3.283]
[1770663201238,0.00328286,2129.0,2128.6,1.17448087]
[1770663204456,0.002,2128.8,2128.6,1.17448087]
[1770663204763,0.00328286,2129.0,2128.6,1.17448087]
[1770663205368,0.002,2129.0,2128.6,1.17448087]
[1770663205663,0.00128286,2128.9,2128.6,1.17448087]
[1770663207866,0.00128286,2128.9,2128.6,5.04448087]
[1770663209369,1.26326149,2129.6,2128.7,3.87]
[1770663209570,0.002,2129.9,2128.8,3.46794562]
[1770663209864,0.002,2129.9,2129.0,3.46794562]
[1770663211356,0.002,2129.9,2129.1,4.64215068]
[1770663211962,3.57358344,2129.9,2129.1,1.17420506]
[1770663212273,3.57358344,2129.9,2128.9,3.282]
[1770663212274,3.57158344,2129.7,2128.9,3.282]
[1770663212566,0.002,2129.9,2129.0,1.1742518]
[1770663212567,3.57158344,2129.5,2129.0,1.1742518]
[1770663212767,3.57158344,2129.5,2128.9,1.17427612]
[1770663213571,4.74562227,2129.5,2128.6,4.69785961]
[1770663215961,4.74562227,2129.5,2128.8,0.001]
[1770663216157,0.002,2129.3,2128.8,0.001]
[1770663216754,0.002,2129.3,2128.8,3.46894562]
[1770663217355,0.002,2129.3,2128.8,0.001]
[1770663218044,0.002,2129.5,2128.8,0.001]
[1770663219876,0.002,2129.5,2128.8,3.46894562]
[1770663220050,0.002,2129.5,2128.9,1.17431537]
[1770663221556,0.002,2129.5,2129.0,3.282]
[1770663221979,0.002,2129.5,2129.2,1.17414991]
[1770663224556,0.002,2129.5,2129.1,4.69659966]
[1770663224958,0.002,2129.5,2129.1,8.56659966]
[1770663228286,0.002,2129.5,2128.8,0.001]
[1770663228287,3.12747134,2129.5,2128.8,0.001]
[1770663228658,0.002,2129.5,2128.8,0.001]
[1770663228978,0.002,2129.5,2128.9,3.281]
[1770663229184,0.002,2129.5,2129.0,0.001]
[1770663229368,0.002,2129.3,2129.0,0.001]
[1770663230574,0.002,2129.3,2129.0,1.17526021]
[1770663231388,0.002,2129.3,2128.8,0.001]
[1770663231389,3.12747134,2129.3,2128.8,0.001]
[1770663231563,3.12747134,2129.3,2128.8,1.1753651]
[1770663231974,3.12747134,2129.3,2128.8,0.001]
[1770663232761,1.17414991,2129.2,2128.8,0.001]
[1770663233090,4.30160646,2129.3,2128.8,0.001]
[1770663233793,0.002,2129.3,2128.8,0.001]
[1770663234987,0.002,2129.3,2128.8,1.17537053]
[1770663235289,0.002,2129.9,2128.9,3.26325675]
[1770663236976,0.002,2129.9,2129.0,1.17426021]
[1770663237178,0.002,2129.9,2129.1,3.26325675]
[1770663237384,0.002,2129.9,2129.2,3.281]
[1770663239877,0.002,2129.9,2129.3,1.17409477]
[1770663241570,0.002,2129.7,2129.3,1.17409477]
[1770663242178,0.002,2129.7,2129.2,4.45511606]
[1770663242494,3.12747134,2129.7,2129.0,0.001]
[1770663242884,3.12547134,2129.5,2129.0,0.001]
[1770663243464,3.12547134,2129.5,2129.0,1.17521739]
[1770663243667,3.12547134,2129.5,2129.0,1.17525902]
[1770663243863,3.12547134,2129.5,2129.0,0.001]
[1770663244164,0.002,2129.7,2129.0,0.001]
[1770663244476,1.17588844,2129.7,2129.0,0.001]
[1770663245299,4.30135978,2129.7,2129.0,0.001]
[1770663245468,3.12547134,2129.6,2129.0,0.001]
[1770663245973,3.12547134,2129.3,2129.0,0.001]
[1770663247875,4.29956612,2129.3,2129.0,0.001]
[1770663248179,0.002,2129.7,2129.0,0.001]
[1770663248580,1.17587587,2129.7,2129.0,0.001]
[1770663248982,0.002,2129.7,2129.0,0.001]
[1770663249385,4.30134839,2129.7,2129.0,0.001]
[1770663249682,3.12547134,2129.5,2129.0,0.001]
[1770663250779,3.12547134,2129.4,2129.0,0.001]
[1770663253001,4.29951483,2129.4,2129.0,0.001]
[1770663253176,4.13418746,2129.3,2128.8,0.001]
[1770663253499,4.75229241,2129.5,2128.8,0.001]
[1770663253500,1.17402993,2129.5,2128.8,0.001]
[1770663253675,3.12547134,2129.4,2129.2,0.001]
[1770663253875,0.002,2129.3,2129.2,0.001]
[1770663254583,0.002,2129.3,2128.7,1.17441985]
[1770663254784,3.12747134,2129.3,2128.7,1.17441985]
[1770663254999,7.82399606,2129.3,2128.3,4.69956402]
[1770663255303,4.29962125,2129.2,2128.3,4.69956402]
[1770663256781,3.12547134,2129.2,2128.3,4.69956402]
[1770663257078,0.002,2129.3,2128.3,4.69956402]
[1770663259573,3.075969,2129.3,2128.3,4.69956402]
[1770663261281,4.24811891,2129.2,2128.3,4.69956402]
[1770663262305,3.073969,2129.1,2128.3,4.69956402]
[1770663263279,6.355969,2129.0,2128.1,0.001]
[1770663263484,3.073969,2128.7,2127.9,0.001]
[1770663263681,3.073969,2128.4,2127.9,0.001]
[1770663264787,3.072969,2128.4,2127.9,0.001]
[1770663265188,1.17464643,2128.3,2127.9,0.001]
[1770663265606,3.073969,2128.2,2127.9,0.001]
[1770663265943,3.073969,2128.2,2127.7,0.142975]
[1770663266119,1.23096331,2128.3,2127.0,4.70144155]
[1770663266120,3.073969,2127.8,2127.0,4.70144155]
[1770663266282,3.073969,2127.8,2127.2,1.17523194]
[1770663266627,3.073969,2127.8,2127.0,1.17531904]
[1770663266780,3.073969,2127.8,2127.1,1.17530842]
[1770663267216,1.17497767,2127.7,2126.8,1.17547489]
[1770663267581,4.24894667,2127.7,2126.8,1.17547489]
[1770663268019,3.073969,2127.6,2126.8,1.17547489]
[1770663268921,1.17496326,2127.8,2126.8,1.17547489]
[1770663269088,3.073969,2127.7,2126.8,1.17547489]
[1770663269286,3.073969,2127.7,2126.7,3.282]
[1770663269287,3.073969,2127.5,2126.7,3.282]
[1770663269623,3.073969,2127.5,2126.5,1.1756003]
[1770663269828,3.073969,2127.5,2126.6,1.17558344]
[1770663270008,3.073969,2127.5,2126.6,1.17558062]
[1770663270600,3.073969,2127.3,2126.5,1.17561999]
[1770663270796,3.073969,2127.3,2126.6,1.17558037]
[1770663271002,3.073969,2127.3,2126.5,1.17562741]
[1770663271328,4.24921339,2127.3,2126.3,4.70295073]
[1770663271533,4.24921339,2127.3,2126.3,1.1757513]
[1770663271534,3.073969,2127.2,2126.3,1.1757513]
[1770663272198,1.17519313,2127.4,2126.3,1.1757513]
[1770663272403,1.17519313,2127.4,2127.1,0.3966]
[1770663272929,3.073969,2127.3,2126.3,1.1757513]
[1770663273116,3.073969,2127.3,2126.1,4.70326634]
[1770663273117,3.073969,2127.1,2125.7,3.2335839]
[1770663273303,3.073969,2127.1,2125.9,4.70380773]
[1770663273304,1.17547489,2126.8,2125.9,4.70380773]
[1770663273829,1.17547489,2126.8,2125.9,1.17597252]
[1770663274132,3.073969,2126.7,2125.8,4.45899731]
[1770663274824,3.073969,2126.5,2125.8,3.283]
[1770663275012,3.073969,2126.5,2125.8,4.45902544]
[1770663275413,3.073969,2125.9,2124.9,1.17650068]
[1770663275604,3.073969,2126.2,2124.5,3.2335839]
[1770663275914,3.073969,2125.9,2124.5,3.2335839]
[1770663276113,3.073969,2125.9,2124.6,0.05631688]
[1770663277334,3.073969,2125.9,2124.2,4.76352832]
[1770663277335,4.25016283,2125.5,2124.1,3.28990078]
[1770663277912,1.17617855,2125.6,2124.3,3.28990078]
[1770663278639,6.357969,2126.0,2124.6,3.2335839]
[1770663278818,3.073969,2125.9,2124.6,3.2335839]
[1770663279432,1.17602784,2125.8,2124.7,1.1766367]
[1770663279830,1.17602784,2125.8,2124.6,1.17664793]
[1770663279831,3.073969,2125.7,2124.6,1.17664793]
[1770663280151,3.073969,2125.7,2124.6,1.17764793]
[1770663280727,6.358969,2125.7,2124.6,1.17764793]
[1770663281119,4.70367144,2126.0,2124.7,3.2335839]
[1770663281946,3.073969,2125.9,2124.8,1.17658132]
[1770663282547,4.70367144,2126.0,2124.8,1.17658132]
[1770663282724,3.073969,2125.9,2124.8,1.17658132]
[1770663283521,3.13028588,2125.9,2124.8,1.17658132]
[1770663283726,3.073969,2125.9,2124.8,1.17658132]
[1770663283936,1.17602784,2125.8,2124.7,7.9399092]
[1770663284332,4.24999684,2125.8,2124.7,1.1766367]
[1770663286251,3.32323763,2125.5,2124.6,0.001]
[1770663288129,1.17624917,2125.4,2124.6,0.001]
[1770663288668,1.17624917,2125.4,2124.4,0.001]
[1770663288669,3.32323763,2125.3,2124.4,0.001]
[1770663288839,3.32323763,2125.3,2123.7,1.1771646]
[1770663288840,3.32323763,2124.6,2123.7,1.1771646]
[1770663289159,10.53547037,2125.0,2123.7,1.1771646]
[1770663289160,3.287,2124.7,2123.9,1.1770772]
[1770663289363,3.287,2124.7,2123.9,1.1770457]
[1770663289666,6.61023763,2124.9,2123.8,1.17710342]
[1770663289832,3.32323763,2124.8,2123.9,0.001]
[1770663290030,1.1766367,2124.7,2124.0,0.001]
[1770663290359,4.49986161,2124.8,2124.1,0.001]
[1770663290535,4.49986161,2124.8,2124.2,0.001]
[1770663290958,4.49986161,2124.8,2123.7,1.17719075]
[1770663291162,4.49986161,2124.8,2123.8,0.001]
[1770663291532,3.32323763,2124.7,2123.8,0.001]
[1770663292034,3.32323763,2124.7,2124.6,0.001]
[1770663292239,4.49987433,2124.7,2123.8,0.001]
[1770663292449,3.32323763,2124.6,2123.8,0.001]
[1770663292655,3.37955451,2124.6,2124.4,0.001]
[1770663292861,3.37955451,2124.6,2123.8,0.001]
[1770663293258,6.61023763,2124.5,2123.8,0.001]
[1770663293653,3.32323763,2124.4,2123.8,0.001]
[1770663293843,3.287,2124.5,2123.8,0.001]
[1770663294335,4.49987433,2124.7,2123.8,0.001]
[1770663295158,7.99438348,2124.8,2123.8,0.001]
[1770663295159,1.17662368,2124.8,2123.8,0.001]
[1770663295530,1.17662368,2124.8,2123.7,3.25698236]
[1770663295737,4.70620654,2124.9,2123.7,3.25698236]
[1770663295738,1.17635987,2125.2,2123.7,3.25798236]
[1770663296264,1.17635987,2125.2,2123.8,1.17713532]
[1770663296448,1.17635987,2125.2,2123.9,3.25698236]
[1770663297556,1.17635987,2125.2,2124.0,0.001]
[1770663298061,1.17635987,2125.2,2124.0,3.25798236]
[1770663298561,4.70543948,2125.3,2124.1,7.72195142]
[1770663298762,1.17630452,2125.3,2124.1,7.72195142]
[1770663299184,0.002,2125.4,2124.2,3.25798236]
[1770663299843,0.002,2125.4,2124.4,3.25698236]
[1770663300554,0.002,2125.4,2124.6,3.25698236]
[1770663301239,0.002,2125.4,2124.7,3.25798236]
[1770663301554,0.002,2125.4,2124.7,3.25698236]
[1770663302174,0.002,2125.4,2124.8,0.001]
[1770663302474,0.002,2125.4,2124.8,1.17758132]
[1770663303272,0.002,2125.4,2124.4,4.70706208]
[1770663303273,3.32523763,2125.4,2124.4,4.70706208]
[1770663303582,0.002,2125.4,2124.7,1.17662364]
[1770663303765,0.002,2125.4,2124.8,0.001]
[1770663304667,3.32523763,2125.4,2124.2,4.7072119]
[1770663304876,3.32523763,2125.4,2124.3,0.001]
[1770663305189,3.32523763,2125.4,2124.0,1.17701733]
[1770663305190,3.32323763,2124.6,2124.0,1.17701733]
[1770663305359,3.32323763,2124.6,2123.8,0.001]
[1770663306479,3.32323763,2124.7,2123.9,0.002]
[1770663306680,3.32323763,2124.5,2123.9,0.002]
[1770663306882,3.32323763,2124.5,2123.8,0.001]
[1770663307185,3.32323763,2124.5,2123.8,0.003]
[1770663307592,3.37955451,2124.4,2123.8,0.001]
[1770663308084,3.32323763,2124.4,2123.8,0.001]
[1770663308578,1.17685825,2124.3,2123.8,0.001]
[1770663309085,4.50009588,2124.3,2123.8,0.003]
[1770663309267,3.32323763,2124.2,2123.5,0.001]
[1770663309585,4.46485825,2124.3,2123.5,0.001]
[1770663309586,1.17685825,2124.3,2123.5,0.001]
[1770663310484,4.70743303,2124.4,2123.5,0.001]
[1770663310684,4.76374991,2124.4,2123.5,0.001]
[1770663310985,8.03067066,2124.4,2123.5,0.001]
[1770663311156,1.17680286,2124.4,2123.5,0.001]
[1770663311356,1.17669208,2124.6,2123.5,0.001]
[1770663311976,4.70621555,2124.9,2123.5,3.25798236]
[1770663312189,0.002,2125.2,2123.7,3.25698236]
[1770663312460,0.002,2125.2,2124.1,3.25698236]
[1770663312773,0.002,2125.2,2124.2,4.43389602]
[1770663313095,0.002,2125.2,2124.2,3.25698236]
[1770663313394,0.002,2125.2,2124.2,4.43389602]
[1770663314675,0.002,2125.2,2124.3,3.25698236]
[1770663315863,0.002,2125.2,2124.2,1.17691366]
[1770663316062,3.15920282,2125.2,2124.2,1.17691366]
[1770663316285,3.15720282,2125.1,2124.2,1.17691366]
[1770663316676,1.17647058,2125.0,2123.8,4.29475209]
[1770663317602,4.3336734,2125.0,2123.8,4.29475209]
[1770663317895,3.15720282,2124.9,2124.0,0.001]
[1770663318067,1.17647058,2125.0,2124.0,0.001]
[1770663318268,1.17847058,2125.0,2124.0,0.001]
[1770663318894,0.002,2125.0,2124.0,0.001]
[1770663319196,3.1887081,2124.9,2124.0,0.001]
[1770663319386,3.13239122,2124.6,2124.0,0.001]
[1770663320566,3.13439122,2125.0,2124.0,0.001]
[1770663320894,4.30902792,2124.7,2124.0,0.001]
[1770663321061,4.13576683,2124.6,2124.0,0.001]
[1770663321265,3.13239122,2124.6,2124.0,0.001]
[1770663322066,3.13239122,2124.4,2124.0,0.001]
[1770663323400,3.13239122,2124.2,2123.8,0.001]
[1770663324202,1.17685825,2124.3,2123.8,0.001]
[1770663325193,4.30924947,2124.3,2123.8,0.001]
[1770663325406,3.1887081,2124.2,2123.4,0.142975]
[1770663325604,3.13239122,2124.0,2123.4,0.142975]
[1770663325900,4.30924947,2124.3,2123.4,1.32033067]
[1770663328504,1.17685825,2124.3,2123.4,1.32033067]
[1770663329081,3.13239122,2124.7,2123.4,1.32033067]
[1770663329280,1.17669208,2124.6,2123.4,4.39234805]
[1770663330804,1.17669208,2124.6,2123.5,3.07201738]
[1770663331475,7.83915955,2124.7,2123.6,1.17824618]
[1770663331812,0.002,2124.4,2123.6,1.17824618]
[1770663332609,0.002,2124.4,2123.6,0.001]
[1770663333709,1.17880286,2124.4,2123.6,0.001]
[1770663334031,4.31119408,2124.4,2123.6,0.001]
[1770663334401,0.002,2124.4,2123.6,3.07301738]
[1770663334712,3.13439122,2125.0,2124.2,3.07201738]
[1770663334713,0.002,2125.0,2124.2,3.07201738]
[1770663334900,0.002,2125.0,2124.3,3.07201738]
[1770663335806,0.002,2125.0,2124.4,1.17680286]
[1770663337342,0.002,2125.0,2124.4,4.24882024]
[1770663337533,0.002,2125.0,2124.4,1.17680286]
[1770663337707,0.002,2125.0,2124.3,4.70721144]
[1770663339407,0.002,2125.0,2124.4,3.07201738]
[1770663339625,0.002,2125.0,2124.3,4.70721144]
[1770663339929,0.002,2125.0,2124.2,4.4668707]
[1770663340137,0.002,2125.0,2124.2,7.53888808]
[1770663340321,0.002,2125.0,2124.2,4.4668707]
[1770663341021,0.002,2125.0,2124.2,4.46690957]
[1770663341226,3.13439122,2125.0,2124.2,1.17691263]
[1770663341925,1.17652595,2124.9,2123.8,1.17713532]
[1770663342127,0.002,2125.0,2123.9,3.07201738]
[1770663342627,0.05631688,2124.7,2123.8,1.17713532]
[1770663342816,0.05631688,2124.7,2123.7,1.17717531]
[1770663342817,3.1887081,2124.7,2123.7,1.17717531]
[1770663343017,3.1887081,2124.7,2123.7,1.17719063]
[1770663343213,3.1887081,2124.5,2123.6,0.001]
[1770663343509,3.1887081,2124.5,2123.7,1.17718274]
[1770663343711,3.13239122,2124.5,2123.7,1.17718274]
[1770663343907,1.1767572,2124.5,2123.6,0.001]
[1770663344848,1.17658132,2124.8,2123.6,0.001]
[1770663345219,1.2328982,2124.8,2123.6,0.001]
[1770663345632,4.53826337,2124.8,2123.6,0.001]
[1770663346139,0.05631688,2124.6,2124.3,0.001]
[1770663346341,3.30536517,2124.5,2123.6,0.001]
[1770663346544,3.30536517,2124.5,2124.0,0.001]
[1770663347448,4.54026337,2124.8,2124.0,0.001]
[1770663347621,1.00162455,2124.7,2124.0,0.001]
[1770663347822,1.00162455,2124.6,2124.0,0.001]
[1770663348124,4.54026337,2124.8,2124.0,0.001]
[1770663348327,1.00144929,2124.7,2124.0,0.001]
[1770663348530,1.00144929,2124.6,2124.0,0.001]
[1770663348740,3.30536517,2124.6,2124.0,0.001]
[1770663349146,1.2348982,2124.8,2124.0,0.001]
[1770663349342,1.00163023,2124.7,2124.0,0.001]
[1770663349643,1.2348982,2124.8,2124.0,0.001]
[1770663349830,1.00151417,2124.7,2124.0,0.001]
[1770663350029,3.36168205,2124.6,2124.0,0.001]
[1770663350229,3.30536517,2124.5,2124.0,0.001]
[1770663352042,1.17680286,2124.4,2124.0,0.001]
[1770663352441,1.23311974,2124.4,2124.0,0.001]
[1770663352824,1.17680286,2124.4,2124.0,0.001]
[1770663353421,1.23311974,2124.4,2124.0,0.001]
[1770663353844,4.53848491,2124.4,2124.0,0.001]
[1770663354042,1.17696906,2124.1,2123.6,0.001]
[1770663354251,1.17695878,2124.2,2123.6,0.001]
[1770663354632,4.46590138,2124.3,2123.6,0.001]
[1770663354931,0.002,2124.8,2123.6,0.001]
[1770663355253,5.5399893,2124.7,2123.6,0.001]
[1770663355458,1.00167055,2124.6,2123.6,0.001]
[1770663355629,4.30703572,2124.6,2123.6,0.001]
[1770663355819,4.46761378,2124.8,2123.7,3.25259379]
[1770663356025,4.46761378,2124.8,2123.9,3.25259379]
[1770663356549,0.002,2124.8,2123.9,3.25259379]
[1770663358253,0.002,2124.8,2124.1,3.25259379]
[1770663359032,0.002,2125.0,2124.1,3.25259379]
[1770663359234,0.002,2125.2,2124.1,3.48616409]
[1770663359755,0.002,2125.2,2124.1,3.48716409]
[1770663359961,0.002,2124.6,2124.1,3.48716409]
[1770663360172,0.002,2125.2,2124.3,3.25259379]
[1770663360857,0.002,2124.8,2124.3,3.25259379]
[1770663361231,0.002,2125.2,2124.3,3.25259379]
[1770663362164,0.002,2125.2,2124.5,1.17674746]
[1770663364359,0.002,2125.2,2124.5,4.42934125]
[1770663366579,0.002,2125.6,2124.6,3.25259379]
[1770663366878,0.002,2125.6,2124.8,3.25259379]
[1770663368459,0.002,2125.6,2125.0,3.25259379]
[1770663368662,0.002,2125.9,2125.2,3.25259379]
[1770663369042,0.002,2125.9,2125.1,3.289]
[1770663369357,0.002,2125.9,2125.2,3.25259379]
[1770663369966,0.002,2125.9,2125.1,3.289]
[1770663370150,3.30736517,2125.9,2125.1,3.289]
[1770663370353,0.002,2125.9,2125.2,1.17635987]
[1770663372745,0.002,2125.9,2125.3,3.25259379]
[1770663373762,0.002,2125.7,2125.3,3.25259379]
[1770663373959,0.002,2126.5,2125.4,3.25259379]
[1770663374443,0.002,2126.5,2125.5,1.17619383]
[1770663374648,0.002,2126.5,2125.7,3.25259379]
[1770663374968,0.002,2126.5,2125.6,3.288]
[1770663375345,0.002,2126.5,2125.5,4.47843023]
[1770663375547,0.002,2126.5,2125.5,7.76643023]
[1770663375975,3.08670176,2126.5,2125.5,4.46419383]
[1770663376352,3.08470176,2126.3,2125.4,1.17624347]
[1770663376668,3.08470176,2126.1,2125.2,1.17635987]
[1770663378645,1.17591721,2126.0,2125.1,4.70543948]
[1770663379648,4.2605669,2126.1,2125.1,4.70543948]
[1770663380051,1.17586514,2126.1,2125.1,4.70543948]
[1770663380467,1.17578139,2126.3,2125.2,3.32445591]
[1770663380669,1.17767978,2126.5,2125.4,3.32445591]
[1770663380977,1.17767978,2126.5,2125.4,7.19445591]
[1770663381151,1.17767978,2126.5,2125.5,3.32445591]
[1770663381562,3.13934549,2126.4,2125.3,5.04630452]
[1770663381770,3.13934549,2126.4,2125.3,8.37076043]
[1770663382485,1.17767978,2126.5,2125.4,3.32445591]
[1770663382679,0.002,2126.5,2125.5,7.78764974]
[1770663383882,0.002,2126.5,2125.6,3.32445591]
[1770663384576,0.002,2126.5,2125.7,1.17608317]
[1770663384984,0.002,2126.5,2125.7,4.50053908]
[1770663385362,0.002,2126.5,2125.7,1.17608317]
[1770663386062,3.14134549,2126.5,2125.7,1.17608317]
[1770663386263,0.002,2126.2,2125.7,1.17608317]
[1770663386664,0.002,2126.2,2125.6,4.70433269]
[1770663388261,0.002,2126.2,2125.6,1.1761385]
[1770663388667,3.13934549,2126.0,2125.5,0.001]
[1770663388988,3.13934549,2126.0,2125.3,0.001]
[1770663389172,3.13934549,2125.8,2125.3,0.001]
[1770663390789,1.17608317,2125.7,2125.3,0.001]
[1770663391386,3.13934549,2125.6,2125.3,0.001]
[1770663393201,1.17619383,2125.5,2125.3,0.001]
[1770663394094,1.17607924,2125.8,2125.3,0.001]
[1770663394295,3.13934549,2125.7,2125.3,0.001]
[1770663396077,1.1761385,2125.6,2125.3,0.001]
[1770663396281,1.17602784,2125.9,2125.3,0.001]
[1770663397078,4.31537333,2125.9,2125.3,0.001]
[1770663397772,4.70356647,2126.1,2125.3,0.001]
[1770663397977,1.00186145,2126.0,2125.3,0.001]
[1770663398179,7.84291196,2126.1,2125.3,0.001]
[1770663398379,4.14118672,2126.0,2125.3,0.001]
[1770663398577,3.13934549,2126.0,2125.3,0.001]
[1770663399197,3.13934549,2126.0,2125.5,0.001]
[1770663399583,3.19566237,2126.0,2125.5,0.001]
[1770663399778,4.1419451,2125.9,2125.5,0.001]
[1770663400092,3.13934549,2125.9,2125.5,0.001]
[1770663400296,1.23234472,2125.8,2125.3,0.001]
[1770663400471,3.13934549,2125.7,2125.3,0.001]
[1770663400900,4.46302784,2125.8,2125.3,0.001]
[1770663401300,3.13934549,2125.7,2125.3,0.001]
[1770663402200,1.1761385,2125.6,2125.3,0.001]
[1770663402408,3.287,2125.8,2125.3,0.001]
[1770663402705,1.17780699,2126.2,2125.3,3.32545591]
[1770663403000,0.002,2126.2,2125.3,3.32545591]
[1770663403506,1.17781329,2126.2,2125.3,3.32545591]
[1770663403801,1.17781212,2126.2,2125.3,3.32545591]
[1770663404504,0.002,2126.2,2125.4,1.17624917]
[1770663405000,0.002,2126.2,2125.3,1.17729542]
[1770663405302,3.14134549,2126.2,2125.3,1.17729542]
[1770663405688,3.35384098,2126.1,2125.3,1.17729542]
[1770663405905,3.2975241,2126.1,2125.3,0.001]
[1770663406108,3.2975241,2125.5,2125.0,0.001]
[1770663406584,1.17624917,2125.4,2125.0,0.001]